bitfinex/quotes_ETHUSD_20241217
["timestamp","ask_amount","ask_price","bid_price","bid_amount"]
[1734409937659,0.7539,4007.5,4006.3,0.51174289]
[1734409938485,0.7539,4007.5,4006.4,0.55]
[1734409938681,0.7539,4007.5,4006.4,0.84785618]
[1734409939272,0.7539,4007.5,4006.7,0.55]
[1734409939868,0.7539,4007.5,4006.6,0.7871]
[1734409940988,0.7539,4007.5,4006.7,0.84785618]
[1734409941194,0.7539,4007.5,4007.2,3.0]
[1734409941353,0.7539,4007.5,4006.8,0.16349562]
[1734409941991,0.7539,4007.5,4006.8,0.4613518]
[1734409943360,0.7539,4007.5,4007.3,3.0]
[1734409944359,0.7539,4007.5,4006.8,0.29785618]
[1734409945762,0.7539,4007.5,4007.3,3.0]
[1734409946372,0.7539,4007.5,4006.8,0.29785618]
[1734409946609,0.7539,4007.5,4007.3,3.0]
[1734409947998,6.71132962,4007.9,4006.8,0.47381977]
[1734409948711,5.95742962,4007.8,4006.8,0.47381977]
[1734409950303,5.95742962,4007.8,4006.8,0.29785618]
[1734409950815,5.95742962,4007.8,4006.9,0.02495519]
[1734409950981,5.95742962,4007.8,4007.3,0.55]
[1734409951307,5.95742962,4007.8,4007.3,0.84785618]
[1734409951721,0.7539,4007.9,4007.3,0.84785618]
[1734409952079,0.7539,4007.9,4007.3,0.4613518]
[1734409955021,0.7539,4007.9,4007.3,0.29785618]
[1734409955195,0.8036,4007.7,4006.8,0.12645058]
[1734409959844,0.83346123,4008.3,4006.9,1.07355618]
[1734409960047,1.74604887,4008.3,4006.9,1.07355618]
[1734409960605,1.74604887,4008.3,4007.8,3.0]
[1734409960800,0.8036,4008.2,4006.9,1.07355618]
[1734409961107,0.8036,4008.0,4006.9,1.07355618]
[1734409961341,6.76102962,4007.7,4006.4,0.55]
[1734409961504,0.83346123,4007.6,4006.4,0.55]
[1734409962130,0.83346123,4007.6,4006.3,0.89837671]
[1734409962356,0.83346123,4007.6,4006.2,0.29785618]
[1734409962570,0.83346123,4007.6,4005.9,0.29785618]
[1734409962571,2.33498553,4007.2,4005.9,0.29785618]
[1734409962854,0.8036,4007.0,4005.9,0.42105833]
[1734409963007,0.8036,4006.7,4005.9,0.42105833]
[1734409963353,0.02986123,4006.6,4005.9,0.42105833]
[1734409963906,0.8036,4006.7,4005.9,0.29785618]
[1734409964104,0.8036,4006.7,4006.0,0.29785618]
[1734409964524,0.02986123,4006.6,4006.0,0.29785618]
[1734409965151,0.7664,4006.5,4006.0,0.29785618]
[1734409965355,0.7664,4006.3,4005.6,0.12818128]
[1734409965630,0.02986123,4006.2,4005.5,0.29785618]
[1734409965828,0.7664,4006.3,4005.5,0.29785618]
[1734409966231,6.72382962,4006.1,4004.9,1.54037344]
[1734409966427,6.72382962,4006.1,4005.1,0.29785618]
[1734409966935,5.95742962,4005.9,4005.1,0.29785618]
[1734409967135,2.33498553,4005.4,4004.9,0.4992]
[1734409967448,6.72382962,4005.2,4004.9,0.4992]
[1734409968873,6.72382962,4005.2,4004.9,0.79705618]
[1734409969086,5.95742962,4005.2,4005.0,0.29785618]
[1734409971287,5.95742962,4005.2,4005.1,0.84355591]
[1734409971447,5.95742962,4005.2,4005.1,1.14141209]
[1734409971640,5.95742962,4005.2,4005.1,7.61483118]
[1734409971841,5.95742962,4005.2,4005.1,6.74772618]
[1734409972082,5.95742962,4005.2,4005.1,6.52753318]
[1734409972244,5.95742962,4005.2,4005.1,7.4612734]
[1734409972952,0.7664,4006.0,4005.2,3.0]
[1734409973282,0.7664,4006.0,4005.1,1.7815964]
[1734409973988,6.75992962,4006.4,4005.3,0.8171]
[1734409974141,6.75992962,4006.4,4005.3,1.48108698]
[1734409978215,6.75992962,4006.4,4005.3,0.8171]
[1734409978491,5.95742962,4006.2,4005.3,0.8171]
[1734409978803,0.83236123,4006.1,4005.0,0.55]
[1734409978949,0.83236123,4006.1,4004.9,0.4992]
[1734409979151,0.8025,4005.9,4004.9,0.4992]
[1734409979446,0.02986123,4005.8,4004.9,0.4992]
[1734409979646,0.8025,4005.9,4004.9,0.4992]
[1734409980762,0.02986123,4005.8,4004.9,0.4992]
[1734409980963,0.7586,4005.7,4004.9,0.4992]
[1734409981149,0.02986123,4005.6,4004.9,0.4992]
[1734409982005,0.67458908,4005.5,4004.9,0.4992]
[1734409982852,0.67458908,4005.5,4004.9,0.79705618]
[1734409983089,6.71602962,4005.7,4004.9,0.79705618]
[1734409983456,0.7586,4005.6,4004.9,0.4992]
[1734409984690,0.02986123,4005.5,4004.9,0.4992]
[1734409984866,5.95742962,4005.3,4004.9,0.4992]
[1734409985061,0.02986123,4005.2,4004.9,0.4992]
[1734409985267,0.7586,4005.0,4004.9,0.4992]
[1734409986402,6.71602962,4005.0,4004.9,0.4992]
[1734409986616,9.05101515,4005.0,4004.9,0.4992]
[1734409987432,5.95742962,4004.9,4003.4,0.29785618]
[1734409987609,0.7586,4004.3,4003.4,0.29785618]
[1734409988807,0.7586,4004.3,4003.4,0.59141209]
[1734409989399,0.78846123,4004.3,4003.9,3.0]
[1734409989892,0.78846123,4004.3,4003.4,0.29785618]
[1734409989893,0.7586,4004.3,4003.4,0.29785618]
[1734409990235,0.7586,4004.3,4003.9,3.0]
[1734409990434,0.7586,4004.3,4003.4,0.59141209]
[1734409990591,0.7586,4004.3,4003.9,3.0]
[1734409990788,0.7586,4004.3,4003.4,0.74138419]
[1734409991133,5.95742962,4004.7,4004.0,0.7829]
[1734409991284,0.7586,4004.8,4004.7,3.0]
[1734409991480,0.7586,4004.8,4004.0,0.7829]
[1734409991684,0.7586,4004.8,4004.7,3.0]
[1734409991957,0.7586,4004.8,4004.0,0.7829]
[1734409992156,0.7586,4004.8,4004.7,3.0]
[1734409992442,0.7586,4004.8,4004.0,1.08075618]
[1734409992603,0.7586,4004.8,4004.1,0.29785618]
[1734409993235,5.95742962,4005.5,4004.2,0.55]
[1734409993453,0.7586,4005.4,4004.3,0.29785618]
[1734409993944,0.7586,4005.4,4004.7,3.0]
[1734409994098,0.7586,4005.4,4004.3,0.29785618]
[1734409994294,0.7586,4005.4,4005.2,3.0]
[1734409994647,0.7586,4005.4,4004.3,0.29785618]
[1734409994811,0.78846123,4005.4,4004.0,0.7829]
[1734409994999,0.78846123,4005.4,4004.1,0.29785618]
[1734409995201,0.90808764,4005.3,4004.1,0.29785618]
[1734409995741,0.90808764,4005.3,4004.1,0.59141209]
[1734409995952,0.90808764,4005.3,4004.2,0.29785618]
[1734409996100,0.90808764,4005.3,4005.1,3.0]
[1734409996295,0.7586,4005.4,4004.2,0.29785618]
[1734409996700,5.95742962,4005.3,4005.1,3.0]
[1734409998549,5.95742962,4005.3,4004.2,0.29785618]
[1734409999859,5.95742962,4005.2,4005.1,3.0]
[1734410000056,5.95742962,4005.2,4004.3,0.8305]
[1734410000238,5.95742962,4005.2,4005.1,3.0]
[1734410000871,5.95742962,4005.2,4004.4,0.45471323]
[1734410001051,5.95742962,4005.2,4004.5,0.57496994]
[1734410001254,6.71962962,4005.8,4005.0,0.8305]
[1734410001548,6.71962962,4005.8,4005.6,3.0]
[1734410001549,0.67196296,4005.7,4005.6,3.0]
[1734410001747,6.71962962,4005.8,4005.0,0.8305]
[1734410002166,6.71962962,4005.8,4005.0,1.12835618]
[1734410003231,5.95742962,4005.8,4005.0,1.12835618]
[1734410005021,0.7622,4006.0,4005.1,0.29785618]
[1734410005562,0.7622,4006.0,4005.1,0.42320613]
[1734410006973,0.7622,4006.0,4005.6,3.0]
[1734410007784,0.7622,4006.0,4005.1,0.29785618]
[1734410010317,0.7622,4006.0,4005.2,0.55]
[1734410010524,0.7622,4006.0,4005.2,0.84785618]
[1734410010750,0.7622,4006.0,4005.4,0.55]
[1734410011138,0.7622,4006.0,4005.3,0.55]
[1734410011516,6.71962962,4006.3,4005.3,0.55]
[1734410011717,6.71962962,4006.3,4005.5,0.55]
[1734410012075,0.7622,4006.3,4005.6,0.8305]
[1734410014035,6.71962962,4007.0,4005.6,0.8305]
[1734410014235,0.90546152,4006.9,4005.6,0.8305]
[1734410014439,5.95742962,4006.7,4005.7,0.55]
[1734410014671,5.95742962,4006.7,4005.8,0.02496122]
[1734410014822,5.95742962,4006.7,4005.8,1.33902962]
[1734410015025,5.95742962,4006.7,4005.9,0.55]
[1734410015360,5.95742962,4006.7,4005.9,1.59117344]
[1734410015524,5.95742962,4006.7,4005.9,1.3199945]
[1734410015919,5.95742962,4006.7,4005.9,4.3199945]
[1734410016449,5.95742962,4006.7,4005.9,0.55]
[1734410016830,0.7622,4006.5,4005.8,0.55]
[1734410017048,0.7622,4006.3,4005.4,4.04117344]
[1734410017275,5.95742962,4006.7,4005.2,1.16820502]
[1734410017474,6.71962962,4006.2,4005.2,0.12703158]
[1734410017678,6.71962962,4006.2,4005.1,1.04117344]
[1734410017980,6.71962962,4006.2,4005.1,1.33902962]
[1734410018810,6.71962962,4006.2,4005.2,0.55]
[1734410020871,5.95742962,4006.1,4005.2,0.55]
[1734410022175,6.62939258,4006.1,4005.2,0.55]
[1734410022727,0.79206123,4006.0,4004.9,0.55]
[1734410022890,0.79206123,4006.0,4005.0,0.55]
[1734410023091,0.7622,4006.0,4005.2,0.55]
[1734410023428,0.7622,4006.0,4005.4,0.55]
[1734410023633,0.7622,4006.0,4005.4,0.84785618]
[1734410026738,0.7622,4006.0,4005.4,0.97384735]
[1734410027089,0.7864,4006.4,4005.4,0.97384735]
[1734410029295,0.7864,4006.4,4005.4,2.01502079]
[1734410029525,0.7864,4006.4,4005.4,0.97384735]
[1734410031135,0.7864,4006.4,4005.4,0.67599117]
[1734410033658,0.7864,4006.4,4005.4,1.71716461]
[1734410033813,0.7864,4006.4,4005.4,1.39952555]
[1734410034010,5.95742962,4006.7,4005.6,0.55]
[1734410034011,6.74382962,4006.7,4005.6,0.55]
[1734410034209,6.74382962,4006.7,4005.6,4.88902962]
[1734410034609,6.74382962,4006.7,4005.8,0.55]
[1734410035321,6.74382962,4006.7,4005.7,0.55]
[1734410035522,6.74382962,4006.7,4005.8,0.72510695]
[1734410035723,6.74382962,4006.7,4006.2,0.55]
[1734410036090,6.74382962,4007.3,4006.4,3.55]
[1734410036265,6.74382962,4007.3,4006.6,0.55]
[1734410036604,6.74382962,4007.3,4006.4,0.55]
[1734410036811,0.7864,4007.3,4006.4,0.5749583]
[1734410037043,0.7864,4007.3,4006.4,1.59117344]
[1734410037221,0.7864,4007.3,4006.6,0.55]
[1734410037437,0.7864,4007.3,4006.6,1.52034133]
[1734410037929,0.7864,4007.3,4006.6,5.56151477]
[1734410038131,0.7864,4007.3,4006.6,4.52034133]
[1734410038932,0.7864,4007.3,4006.8,0.55]
[1734410041880,0.7814,4007.9,4006.8,0.55]
[1734410042090,0.7814,4007.9,4006.8,5.42562804]
[1734410042267,0.7814,4007.9,4007.0,0.55]
[1734410042635,0.7814,4007.9,4007.0,1.59117344]
[1734410043082,0.7814,4007.9,4007.0,0.55]
[1734410043793,0.7814,4007.7,4007.0,0.55]
[1734410043960,0.02986123,4007.6,4006.7,0.55]
[1734410044167,0.7814,4007.7,4006.7,1.59117344]
[1734410044474,0.7814,4007.7,4006.7,0.55]
[1734410044793,0.7814,4007.7,4006.7,1.59117344]
[1734410044991,0.7814,4007.7,4007.1,0.55]
[1734410045509,0.7814,4007.7,4007.6,0.55]
[1734410046648,0.7814,4007.7,4007.6,3.55]
[1734410046989,0.7814,4007.7,4007.6,0.55]
[1734410048288,0.7814,4007.7,4007.2,0.55]
[1734410048472,0.7814,4007.7,4007.2,0.73417556]
[1734410050702,0.7814,4007.7,4007.0,0.12509095]
[1734410050703,0.7814,4007.7,4007.1,0.55]
[1734410053379,5.95742962,4008.3,4007.1,0.55]
[1734410053380,0.80956123,4007.6,4007.1,0.55]
[1734410053594,0.7797,4007.6,4007.1,0.55]
[1734410054192,0.02986123,4007.5,4006.8,0.12376837]
[1734410054395,8.29241515,4008.1,4006.9,0.55]
[1734410054396,0.7563,4007.4,4006.9,0.55]
[1734410055335,0.7563,4007.4,4006.9,0.84785618]
[1734410056933,0.82924152,4008.0,4006.7,0.12395025]
[1734410056934,5.95742962,4007.1,4006.7,0.12395025]
[1734410057138,0.7563,4006.9,4006.7,0.12395025]
[1734410057703,0.7563,4006.9,4006.2,0.29785618]
[1734410057903,0.67137296,4006.9,4006.2,0.29785618]
[1734410058229,0.7563,4006.8,4006.2,0.29785618]
[1734410058436,0.7563,4006.8,4006.3,0.55]
[1734410058819,5.95742962,4006.5,4005.5,1.04117344]
[1734410059022,0.7563,4006.3,4005.7,0.29785618]
[1734410060609,0.7563,4006.3,4005.8,0.55]
[1734410060812,0.7563,4006.3,4005.9,0.55]
[1734410061022,0.7563,4006.3,4005.2,3.0]
[1734410061235,0.7563,4006.3,4005.0,1.04117344]
[1734410061236,0.7563,4006.3,4005.4,0.29785618]
[1734410062233,0.7563,4006.3,4005.5,0.55]
[1734410066055,5.95742962,4006.2,4005.5,0.55]
[1734410066965,1.03500219,4007.6,4004.6,1.85317344]
[1734410066966,5.95742962,4005.9,4004.6,1.85317344]
[1734410067255,0.25,4007.3,4004.3,1.04117344]
[1734410067256,5.95742962,4005.5,4004.3,1.04117344]
[1734410067556,5.95742962,4005.5,4004.2,0.29785618]
[1734410067557,0.7563,4005.4,4004.2,0.29785618]
[1734410067760,0.7563,4005.2,4004.2,0.29785618]
[1734410068252,0.7563,4005.0,4004.2,0.29785618]
[1734410068452,0.02986123,4004.9,4004.2,0.29785618]
[1734410068819,0.7563,4005.0,4004.3,0.55]
[1734410069020,2.56848408,4005.3,4004.2,0.29785618]
[1734410069021,5.95742962,4004.8,4004.2,0.29785618]
[1734410069222,0.7563,4004.7,4004.2,0.29785618]
[1734410069557,6.71372962,4004.7,4003.5,0.812]
[1734410069763,0.7563,4004.6,4003.6,0.29785618]
[1734410071222,0.7563,4004.6,4003.7,0.55]
[1734410071857,0.7563,4004.6,4004.4,0.55]
[1734410072064,1.66117152,4004.6,4004.4,0.55]
[1734410073163,0.90487152,4004.6,4004.4,0.55]
[1734410073313,0.8025,4004.5,4004.4,0.55]
[1734410074466,0.8025,4004.5,4004.3,0.55]
[1734410074957,5.95742962,4004.4,4004.3,0.55]
[1734410080801,5.95742962,4004.4,4004.3,1.14141209]
[1734410080988,0.8025,4004.8,4004.3,1.14141209]
[1734410081165,0.8025,4004.8,4004.3,0.84785618]
[1734410081372,0.8025,4004.8,4004.6,0.55]
[1734410082153,0.8025,4004.8,4004.4,0.55]
[1734410083399,0.8025,4004.8,4004.6,0.55]
[1734410083754,0.8025,4004.8,4004.4,0.55]
[1734410083949,0.8025,4004.8,4004.5,3.0]
[1734410084152,0.8025,4004.8,4004.6,0.55]
[1734410084399,0.8025,4004.8,4004.4,0.55]
[1734410084802,0.8025,4004.8,4004.6,0.55]
[1734410085308,0.7822,4005.3,4005.0,3.0]
[1734410085753,0.7822,4005.3,4005.1,0.55]
[1734410086361,0.7822,4005.3,4004.8,0.55]
[1734410086906,3.79114849,4005.3,4005.1,0.55]
[1734410087214,0.02986123,4005.2,4004.9,0.55]
[1734410087512,1.08608097,4005.1,4004.9,0.55]
[1734410087714,0.02986123,4005.0,4004.9,0.55]
[1734410087859,0.02986123,4005.0,4004.8,0.55]
[1734410088299,1.1159422,4005.1,4004.8,0.55]
[1734410088505,1.08608097,4005.1,4004.8,0.55]
[1734410088829,0.40950295,4005.0,4004.8,0.55]
[1734410089681,0.40950295,4005.0,4004.7,0.55]
[1734410090061,5.95742962,4004.9,4004.7,0.55]
[1734410093078,5.95742962,4004.8,4004.7,0.55]
[1734410094579,5.95742962,4004.8,4004.7,0.29785618]
[1734410094787,5.95742962,4004.8,4004.7,0.84785618]
[1734410096013,0.7822,4005.4,4004.8,0.55]
[1734410096381,0.67396296,4005.3,4004.8,0.55]
[1734410099033,5.95742962,4005.2,4004.8,0.55]
[1734410099740,0.02986123,4005.1,4004.8,0.55]
[1734410099893,5.95742962,4005.2,4004.8,0.55]
[1734410100288,0.02986123,4005.1,4004.8,0.55]
[1734410100639,0.02986123,4005.1,4004.7,0.55]
[1734410100791,0.70681032,4005.1,4004.6,0.55]
[1734410101190,0.7793,4005.0,4004.6,3.0]
[1734410101562,0.7793,4004.7,4004.0,0.29785618]
[1734410103209,0.7793,4004.4,4003.5,0.7847]
[1734410103410,5.95742962,4004.3,4003.5,1.08255618]
[1734410104449,5.95742962,4004.3,4003.6,0.84785618]
[1734410104747,5.95742962,4004.3,4004.0,0.55]
[1734410105045,5.95742962,4004.3,4003.6,0.84785618]
[1734410105211,6.86460113,4004.3,4003.6,0.84785618]
[1734410107051,6.86460113,4004.3,4003.6,0.55]
[1734410108064,5.95742962,4004.2,4003.6,0.55]
[1734410108864,5.95742962,4004.1,4003.3,0.55]
[1734410108998,0.68646011,4004.0,4003.3,0.55]
[1734410109603,0.7793,4003.9,4003.3,0.55]
[1734410110858,0.7793,4003.9,4003.7,3.0]
[1734410111060,0.7793,4003.9,4003.3,0.84785618]
[1734410111456,5.95742962,4004.1,4003.5,0.55]
[1734410111769,5.95742962,4004.1,4003.9,0.55]
[1734410111905,5.95742962,4004.1,4004.0,9.79904218]
[1734410112100,5.95742962,4004.1,4004.0,7.47121618]
[1734410112351,5.95742962,4004.1,4004.0,1.88902962]
[1734410112803,5.95742962,4004.1,4004.0,0.55]
[1734410114121,0.7793,4005.0,4003.9,1.04117344]
[1734410114122,5.95742962,4004.8,4004.1,0.55]
[1734410114321,0.02986123,4004.7,4004.1,0.55]
[1734410114524,0.8069,4004.6,4003.8,1.04117344]
[1734410114753,0.8069,4004.6,4003.7,1.04117344]
[1734410114952,0.8069,4004.6,4003.6,1.04117344]
[1734410115194,0.90993152,4004.5,4003.6,1.04117344]
[1734410115303,0.90993152,4004.5,4003.5,4.86657344]
[1734410115510,3.17174676,4004.4,4003.4,1.04117344]
[1734410115739,0.8069,4004.1,4003.1,2.29153599]
[1734410115939,0.70629419,4004.0,4003.1,1.99367981]
[1734410116322,0.70629419,4004.0,4003.1,0.95250637]
[1734410116657,0.70629419,4004.0,4002.8,1.56223986]
[1734410116658,5.95742962,4003.8,4002.8,1.04117344]
[1734410116860,5.95742962,4003.8,4002.6,2.38763986]
[1734410116861,5.95742962,4003.8,4002.6,1.86657344]
[1734410117240,5.95742962,4003.8,4002.6,0.8254]
[1734410117622,0.8069,4003.7,4002.6,0.8254]
[1734410117856,0.8069,4003.7,4002.7,0.55]
[1734410118053,0.67643296,4003.6,4002.7,0.55]
[1734410118683,0.67643296,4003.6,4002.7,1.59117344]
[1734410119004,0.8069,4003.7,4002.8,1.04117344]
[1734410119153,5.95742962,4003.8,4002.9,0.55]
[1734410119355,5.95742962,4003.8,4003.1,0.55]
[1734410119939,5.95742962,4003.7,4003.1,0.55]
[1734410120841,0.02986123,4003.6,4003.1,0.55]
[1734410121042,0.59872909,4003.5,4002.8,0.55]
[1734410121252,0.02986123,4003.4,4002.8,0.55]
[1734410121661,0.83676123,4003.4,4002.8,0.55]
[1734410121860,0.83676123,4003.4,4002.6,0.55]
[1734410122092,0.8069,4003.4,4002.6,0.55]
[1734410122252,1.77670442,4003.4,4002.6,0.55]
[1734410124204,1.80656565,4003.4,4002.6,0.55]
[1734410124396,5.95742962,4003.3,4002.4,0.55]
[1734410124920,0.02986123,4003.2,4002.4,0.55]
[1734410125063,0.8069,4003.1,4002.0,0.8254]
[1734410125407,8.29241515,4002.8,4001.7,0.8254]
[1734410125584,5.98729085,4002.7,4001.4,0.8254]
[1734410125768,0.8069,4002.5,4001.2,1.04117344]
[1734410125962,0.8069,4002.5,4001.1,0.8254]
[1734410125963,0.02986123,4002.4,4001.1,0.8254]
[1734410126166,0.8069,4002.5,4001.1,0.8254]
[1734410126167,0.8069,4002.5,4001.1,1.09847396]
[1734410126415,0.75965573,4002.4,4001.2,0.27307396]
[1734410127322,0.8069,4002.5,4001.5,0.55]
[1734410127682,0.8069,4002.5,4002.1,3.0]
[1734410128012,0.8069,4002.5,4001.5,0.55]
[1734410128170,0.76096,4002.5,4001.5,0.55]
[1734410129598,5.95742962,4002.6,4001.7,0.55]
[1734410129808,5.95742962,4002.6,4001.8,0.02498557]
[1734410130167,5.95742962,4002.6,4002.0,0.55]
[1734410131117,5.95742962,4003.1,4002.0,0.55]
[1734410131328,5.95742962,4003.3,4002.0,0.55]
[1734410131474,5.95742962,4003.2,4002.9,3.0]
[1734410131672,5.95742962,4003.2,4002.2,0.55]
[1734410132514,0.02986123,4003.1,4002.9,3.0]
[1734410132885,5.95742962,4003.2,4003.0,0.05530961]
[1734410133098,6.65261244,4003.2,4003.0,0.05530961]
[1734410133302,0.02986123,4003.1,4003.0,0.05530961]
[1734410133520,0.7609,4002.9,4002.0,0.55]
[1734410133676,0.02986123,4002.8,4001.6,0.55]
[1734410134036,1.7357498,4002.9,4001.6,0.9534929]
[1734410134170,1.7357498,4002.9,4001.8,0.55]
[1734410134626,1.7357498,4002.9,4002.0,0.55]
[1734410134977,1.7357498,4002.9,4002.1,0.05730099]
[1734410135176,0.76931794,4002.8,4001.7,0.55]
[1734410135379,0.02986123,4002.7,4002.2,0.05742828]
[1734410135731,0.76931794,4002.8,4001.5,0.7542]
[1734410135732,0.7609,4002.6,4001.5,0.7542]
[1734410135875,0.7609,4002.4,4001.3,0.12731567]
[1734410136206,0.7609,4002.4,4002.3,3.0]
[1734410136579,0.7609,4002.4,4002.3,0.05741495]
[1734410136778,0.7609,4002.4,4001.3,0.12731567]
[1734410136979,0.7609,4002.4,4002.3,0.05741495]
[1734410137299,1.471385,4002.4,4001.4,0.55]
[1734410137791,1.471385,4002.4,4001.6,0.55]
[1734410138027,0.7609,4002.4,4002.3,3.0]
[1734410138225,0.7609,4002.4,4001.7,0.05749496]
[1734410138539,0.7609,4002.4,4002.3,3.05759075]
[1734410139066,0.7609,4002.4,4002.3,0.05759075]
[1734410139224,0.7609,4002.4,4002.3,3.05759075]
[1734410139557,5.95742962,4002.5,4002.4,3.0]
[1734410139870,5.95742962,4002.5,4002.4,0.55]
[1734410140155,5.95742962,4002.5,4002.4,5.828581]
[1734410140463,5.95742962,4002.5,4002.4,5.88602782]
[1734410140630,5.95742962,4003.0,4002.5,3.55]
[1734410140961,0.7609,4003.4,4002.5,0.57498361]
[1734410141161,0.7609,4003.4,4003.2,3.0]
[1734410141358,0.7609,4003.7,4003.2,3.0]
[1734410141526,0.7609,4003.7,4002.7,0.55]
[1734410142167,0.7609,4003.7,4003.4,3.0]
[1734410142309,0.7609,4003.7,4003.0,0.55]
[1734410143026,0.7609,4003.7,4003.4,3.0]
[1734410143241,0.7609,4003.7,4003.1,0.0567459]
[1734410143442,0.7609,4003.7,4003.5,0.05669259]
[1734410143774,0.79076123,4003.7,4002.6,0.55]
[1734410143918,0.79076123,4003.7,4002.8,0.55]
[1734410144112,0.79076123,4003.7,4003.4,3.0]
[1734410144312,0.79076123,4003.7,4002.6,0.55]
[1734410144815,0.79076123,4003.7,4002.8,0.55]
[1734410145224,0.79076123,4003.7,4002.9,0.05673741]
[1734410145437,1.46558032,4003.7,4003.4,3.0]
[1734410145641,1.46558032,4003.7,4002.9,0.05673741]
[1734410145957,1.43571909,4003.7,4002.6,0.55]
[1734410146113,1.43571909,4003.7,4002.6,0.69306257]
[1734410146316,1.43571909,4003.7,4003.0,0.05672408]
[1734410146510,1.43571909,4003.7,4002.6,0.69306257]
[1734410146769,1.43571909,4003.7,4003.1,0.05671075]
[1734410146962,0.02986123,4003.6,4002.6,0.55]
[1734410147165,6.93322917,4003.5,4003.2,0.05669743]
[1734410147317,0.02986123,4003.4,4002.6,0.55]
[1734410147717,0.02986123,4003.4,4002.8,0.55]
[1734410148014,0.02986123,4003.4,4002.9,0.05673741]
[1734410148461,6.93322917,4003.5,4002.8,0.55]
[1734410148774,6.93322917,4003.5,4002.9,0.05673741]
[1734410148918,0.76941292,4003.4,4002.9,0.05673741]
[1734410149119,5.95742962,4003.2,4002.4,0.55]
[1734410149331,0.02986123,4003.1,4002.4,0.55]
[1734410149526,0.02986123,4003.1,4003.0,3.0]
[1734410149728,5.95742962,4003.2,4002.5,0.05679074]
[1734410149953,0.02986123,4003.1,4002.5,0.05679074]
[1734410150626,0.7609,4003.0,4001.9,0.27307396]
[1734410150825,0.7609,4003.0,4002.6,0.05677741]
[1734410151041,0.7609,4003.0,4001.9,0.27307396]
[1734410151258,0.02986123,4002.9,4001.9,0.27307396]
[1734410151460,0.02986123,4002.9,4002.0,0.05685741]
[1734410151461,0.7609,4002.8,4002.0,0.05685741]
[1734410151678,0.7609,4002.6,4002.0,0.05685741]
[1734410151880,0.7609,4002.6,4001.5,1.02557396]
[1734410151881,5.98729085,4002.5,4001.5,1.02557396]
[1734410152190,5.95742962,4002.5,4001.5,1.02557396]
[1734410152342,5.98729085,4002.4,4001.5,1.15323396]
[1734410152545,5.95742962,4002.4,4001.6,0.05501155]
[1734410152747,5.95742962,4002.4,4001.7,0.55]
[1734410152939,5.95742962,4002.4,4001.9,0.55]
[1734410153479,5.95742962,4002.4,4002.1,0.55]
[1734410153660,5.95742962,4002.4,4002.0,0.32803216]
[1734410153844,5.95742962,4002.4,4002.2,0.05537347]
[1734410154169,5.95742962,4002.4,4002.1,0.55]
[1734410154674,5.95742962,4002.4,4002.3,0.05583719]
[1734410154857,5.95742962,4002.4,4002.2,0.05585053]
[1734410155065,5.95742962,4002.4,4002.1,0.55]
[1734410155285,5.95742962,4002.4,4002.3,0.05572167]
[1734410155436,5.95742962,4002.4,4002.2,0.05573501]
[1734410155637,5.95742962,4002.4,4002.1,0.55]
[1734410155975,5.95742962,4002.4,4002.2,0.05569483]
[1734410156130,5.95742962,4002.8,4002.1,0.55]
[1734410156337,0.02986123,4002.7,4002.2,0.05569483]
[1734410156577,5.98729085,4002.7,4002.5,3.0]
[1734410156788,0.7609,4002.6,4001.9,0.55]
[1734410158244,5.95742962,4002.7,4001.9,0.55]
[1734410158245,5.95742962,4002.7,4002.1,0.55]
[1734410158559,5.95742962,4002.7,4002.1,1.59117344]
[1734410158760,5.95742962,4002.7,4002.1,4.59117344]
[1734410159089,5.95742962,4002.7,4002.3,0.55]
[1734410159795,5.95742962,4002.7,4002.2,0.55]
[1734410159949,5.95742962,4002.7,4002.2,1.59117344]
[1734410161078,5.95742962,4002.7,4002.2,0.55]
[1734410161292,0.7609,4002.6,4002.1,1.04117344]
[1734410161447,0.7609,4002.6,4002.0,1.04117344]
[1734410161645,0.7609,4002.6,4001.9,1.04117344]
[1734410161854,0.7609,4002.6,4001.8,1.04117344]
[1734410161855,0.79076123,4002.6,4001.8,1.04117344]
[1734410162052,6.71832962,4002.5,4001.6,1.04117344]
[1734410162373,0.7609,4002.3,4001.5,1.04117344]
[1734410162565,0.7609,4002.1,4001.4,1.04117344]
[1734410162768,0.02986123,4002.0,4001.3,1.04117344]
[1734410163106,0.7609,4002.1,4001.3,1.04117344]
[1734410163405,0.7609,4002.1,4001.2,1.04117344]
[1734410164052,0.7609,4002.1,4000.9,1.59738596]
[1734410164053,5.98729085,4002.0,4000.9,1.04117344]
[1734410164252,5.98729085,4002.0,4000.8,0.27307396]
[1734410164253,0.7609,4001.9,4000.8,1.43448195]
[1734410164467,0.7609,4001.9,4000.9,0.55]
[1734410164679,0.7609,4001.9,4001.0,1.04117344]
[1734410164883,0.70169419,4001.8,4000.8,1.16752828]
[1734410165107,0.67183296,4001.8,4000.8,1.16752828]
[1734410165683,0.67183296,4001.8,4000.8,1.04117344]
[1734410165881,0.73901626,4001.7,4000.8,1.04117344]
[1734410166577,0.7609,4001.9,4001.0,0.55]
[1734410166813,0.7609,4001.9,4001.2,0.55]
[1734410167179,0.7609,4001.9,4001.7,3.0]
[1734410167375,0.7609,4001.9,4001.2,0.55]
[1734410167598,0.7609,4001.9,4001.1,0.55]
[1734410167804,1.43273296,4001.9,4001.1,0.55]
[1734410167994,0.7609,4001.9,4001.1,0.55]
[1734410168194,6.71832962,4001.9,4001.1,1.59117344]
[1734410168492,6.71832962,4001.9,4001.1,0.55]
[1734410169211,6.71832962,4001.9,4001.0,0.55]
[1734410169539,5.95742962,4001.9,4001.0,0.55]
[1734410169740,1.35664296,4001.8,4000.9,0.55]
[1734410170722,0.7609,4001.8,4000.9,1.86373737]
[1734410171129,0.7609,4001.8,4000.9,4.86373737]
[1734410171130,6.71832962,4001.8,4000.9,4.86373737]
[1734410171294,6.71832962,4001.8,4000.9,0.82256393]
[1734410171500,6.71832962,4001.8,4000.9,0.55]